fUSD/lending_fUSD_20251006
["ID","MTS","AMOUNT","RATE_DAILY","PERIOD"]
[389656904,1759769479489,-643.0,0.00029828,2]
[389656905,1759769479499,-983.55631798,0.00029828,2]
[389656906,1759769479508,-580.70245186,0.00029828,2]
[389656907,1759769479517,-1859.90695082,0.00029828,2]
[389656908,1759769479526,-822051.05443869,0.00029828,2]
[389656909,1759769479536,-161974.20660575,0.00029828,2]
[389656910,1759769479545,-172078.62261006,0.00029828,2]
[389656911,1759769479555,-15119.35063763,0.00029828,2]
[389656912,1759769479564,-231.89451194,0.00029828,2]
[389656913,1759769479574,-175.98896873,0.00029828,2]
[389656914,1759769479584,-6000.0,0.00029828,2]
[389656915,1759769479594,-380.21512717,0.00029828,2]
[389656916,1759769479604,-1488.65940289,0.00029828,2]
[389656917,1759769479614,-1046.70985449,0.00029828,2]
[389656918,1759769479624,-1192.21583906,0.00029828,2]
[389656919,1759769479637,-570.3987363,0.00029828,2]
[389656920,1759769479646,-150.0,0.00029828,2]
[389656921,1759769479655,-7864.43538672,0.00029828,2]
[389656922,1759769479664,-1001.20492279,0.00029828,2]
[389656923,1759769479674,-634.37466673,0.00029828,2]
[389656924,1759769479684,-217.47757942,0.00029828,2]
[389656925,1759769479698,-166309.87932931,0.00029828,2]
[389656926,1759769479708,-1080.38713866,0.00029828,2]
[389656927,1759769479718,-2500.0,0.00029828,2]
[389656928,1759769479729,-586.5182208,0.00029828,2]
[389656929,1759769479739,-346.48610942,0.00029828,2]
[389656930,1759769479749,-1100.0,0.00029828,2]
[389656931,1759769479759,-923.86268365,0.00029828,2]
[389656932,1759769479771,-15781.39221817,0.00029828,2]
[389656933,1759769479781,-487.77147308,0.00029828,2]
[389656934,1759769479791,-1607.72786506,0.00029828,2]
[389656935,1759769479801,-555.36167929,0.00029828,2]
[389656936,1759769479811,-5068.99997573,0.00029828,2]
[389656937,1759769479820,-1024.7891823,0.00029828,2]
[389656938,1759769479829,-369.5085714,0.00029828,2]
[389656939,1759769479842,-2231.79749279,0.00029828,2]
[389656940,1759769479851,-23342.09430112,0.00029828,2]
[389656941,1759769479860,-14981.69898933,0.00029828,2]
[389656942,1759769479870,-1860.34707554,0.00029828,2]
[389656943,1759769479879,-1132.59736945,0.00029828,2]
[389656944,1759769479889,-407.94436998,0.00029828,2]
[389656945,1759769479899,-1502.42416578,0.00029828,2]
[389656946,1759769479908,-20534.82957578,0.00029828,2]
[389656947,1759769479917,-1727.74396851,0.00029828,2]
[389656948,1759769479927,-205.58583729,0.00029828,2]
[389656949,1759769479936,-874.98987204,0.00029828,2]
[389656950,1759769479945,-286.61411339,0.00029828,2]
[389656951,1759769479954,-5762.73336163,0.00029828,2]
[389656952,1759769479963,-4640.84645161,0.00029828,2]
[389656953,1759769479972,-2201.90404913,0.00029828,2]
[389656954,1759769479982,-1048.97928631,0.00029828,2]
[389656955,1759769479991,-887.84621095,0.00029828,2]
[389656956,1759769480000,-466.65310939,0.00029828,2]
[389656957,1759769480009,-150.0,0.00029828,2]
[389656958,1759769480019,-160.0,0.00029828,2]
[389656959,1759769480028,-12784.36209114,0.00029828,2]
[389656960,1759769480038,-160.05403927,0.00029828,2]
[389656961,1759769480047,-202.09085193,0.00029828,2]
[389656962,1759769480056,-752.39036476,0.00029828,2]
[389656963,1759769480066,-4266.0,0.00029828,2]
[389656964,1759769480075,-10771.18604841,0.00029828,3]
[389656965,1759769480084,-994.05148359,0.00029828,5]
[389656966,1759769480094,-600.0,0.00029828,5]
[389656967,1759769480105,-494.72229461,0.00029828,3]
[389656968,1759769480116,-1099.91906164,0.00029828,5]
[389656969,1759769480126,-25172.98070455,0.00029828,5]
[389656970,1759769480135,-463.96528397,0.00029828,2]
[389656971,1759769480144,-78638.96037793,0.00029828,10]
[389656972,1759769480153,-180469.730562,0.00029828,2]
[389656973,1759769480163,-631.72851121,0.00029828,6]
[389656974,1759769480172,-1057.81107236,0.00029828,7]
[389656975,1759769480181,-554.21899555,0.00029828,7]
[389656976,1759769480191,-279.75392394,0.00029828,10]
[389656977,1759769480200,-251038.10935021,0.00029828,2]
[389656978,1759769480209,-4442.66439455,0.00029828,20]
[389656979,1759769480218,-9338.42200604,0.00029828,7]
[389656980,1759769480228,-5004.68890571,0.00029828,10]
[389656981,1759769480240,-200000.0,0.00029828,2]
[389656982,1759769480250,-2364.13460403,0.00029828,14]
[389656983,1759769480259,-150.0,0.00029828,2]
[389656984,1759769480268,-150.0,0.00029828,3]
[389656985,1759769480278,-925.63895492,0.00029828,14]
[389656986,1759769480290,-1056.65733395,0.00029828,15]
[389656987,1759769480299,-300.0,0.00029828,15]
[389656988,1759769480309,-1279.23484929,0.00029828,15]
[389656989,1759769480318,-27126.0799881,0.00029828,5]
[389656990,1759769480327,-51122.53022315,0.00029828,2]
[389656991,1759769480337,-502.13098861,0.00029828,7]
[389656992,1759769480346,-40000.0,0.00029828,10]
[389656993,1759769480355,-1221.0,0.00029828,4]
[389656994,1759769480364,-3348.53533929,0.00029828,2]
[389656995,1759769480374,-1000.0,0.00029828,2]
[389656996,1759769480384,-2536.62163611,0.00029828,2]
[389656997,1759769480393,-5079.21686458,0.00029828,2]
[389656998,1759769480402,-41616016.85701586,0.00029828,30]
[389656999,1759769480412,-1000.0,0.00029828,30]
[389657000,1759769480421,-1000.0,0.00029828,30]
[389657001,1759769480431,-1000.0,0.00029828,30]
[389657002,1759769480440,-1000.0,0.00029828,30]
[389657003,1759769480449,-1000.0,0.00029828,30]
[389657004,1759769480458,-1000.0,0.00029828,30]
[389657005,1759769480467,-1000.0,0.00029828,30]
[389657006,1759769480476,-1000.0,0.00029828,30]
[389657007,1759769480485,-1000.0,0.00029828,30]
[389657008,1759769480494,-1000.0,0.00029828,30]
[389657009,1759769480503,-927.94022649,0.00029828,30]
[389657010,1759769480513,-1000.0,0.00029828,30]
[389657011,1759769480522,-396.47194563,0.00029828,30]
[389657012,1759769480531,-25000.0,0.00029828,30]
[389657013,1759769480540,-21312.13783754,0.00029828,2]
[389657014,1759769480549,-50000.0,0.00029828,30]
[389657015,1759769480558,-50000.0,0.00029828,31]
[389657016,1759769480567,-50000.0,0.00029828,32]
[389657017,1759769480576,-50000.0,0.00029828,33]
[389657018,1759769480586,-50000.0,0.00029828,34]
[389657019,1759769480595,-50000.0,0.00029828,35]
[389657020,1759769480603,-50000.0,0.00029828,36]
[389657021,1759769480613,-50000.0,0.00029828,37]
[389657022,1759769480622,-50000.0,0.00029828,38]
[389657023,1759769480632,-50000.0,0.00029828,39]
[389657024,1759769480642,-1308595.59861029,0.00029828,45]
[389657025,1759769480651,-80909.60411427,0.00029828,30]
[389657026,1759769480661,-150.0,0.00029828,10]
[389657027,1759769480670,-1004.42706423,0.00029828,30]
[389657028,1759769480680,-210000.0,0.00029828,31]
[389657029,1759769480691,-5381.37,0.00029828,7]
[389657030,1759769480701,-1525461.81169387,0.00029828,30]
[389657031,1759769480711,-5000.0,0.00029828,35]
[389657032,1759769480720,-5000.0,0.00029828,36]
[389657033,1759769480730,-1002.7989342,0.00029828,20]
[389657034,1759769480742,-81631.0,0.00029828,30]
[389657035,1759769480752,-23803.60213153,0.00029828,30]
[389657036,1759769480762,-155.9,0.00029828,2]
[389657037,1759769480772,-685.39521091,0.00029828,30]
[389657038,1759769480782,-1627343.91902887,0.00029828,30]
[389657039,1759769480791,-225.15985228,0.00029828,2]
[389657040,1759769480802,-1500.0,0.00029828,30]
[389657041,1759769480811,-1116.0,0.00029828,30]
[389657042,1759769480820,-2190601.09053217,0.00029828,120]
[389657043,1759769480985,-66657.64910273,0.00029828,120]
[389657044,1759769480997,-25186.3396482,0.00029828,120]
[389657045,1759769481010,-1394.76542687,0.00029828,120]
[389657046,1759769481020,-335.04991627,0.00029828,120]
[389657047,1759769481032,-7050.01579622,0.00029828,120]
[389657048,1759769481044,-1429.57753364,0.00029828,120]
[389657049,1759769481055,-31082.84202831,0.00029828,120]
[389657050,1759769481065,-120149.3799486,0.00029828,120]
[389657051,1759769482764,-12471.11332607,0.00029828,120]
[389657052,1759769482777,-489.29187735,0.00029828,120]
[389657053,1759769482864,-514.11480726,0.00029828,120]
[389657054,1759769482877,-297.0134,0.00029828,120]
[389657055,1759769482888,-10488.2306465,0.00029828,120]
[389657056,1759769482899,-6894.16155069,0.00029828,120]
[389657057,1759769482908,-6014.6211286,0.00029828,120]
[389657058,1759769482917,-9840.60609402,0.00029828,120]
[389657059,1759769482927,-20914.68146656,0.00029828,120]
[389657060,1759769482936,-14811.31645615,0.00029828,120]
[389657061,1759769482946,-5754.77197178,0.00029828,120]
[389657062,1759769482955,-10000.0,0.00029828,15]
[389657063,1759769482964,-3568.51888162,0.00029828,120]
[389657064,1759769482973,-9820.6137037,0.00029828,120]
[389657065,1759769482983,-1608.82378011,0.00029828,18]
[389657066,1759769482992,-564.931296,0.00029828,80]
[389657067,1759769483001,-5661.0,0.00029828,120]
[389657068,1759769483011,-10000.0,0.00029828,120]
[389657069,1759769483019,-160020.78975339,0.00029828,30]
[389657070,1759769483029,-8715.4336505,0.00029828,120]
[389657071,1759769483039,-2615.88925417,0.00029828,40]
[389657072,1759769483048,-2574.28759279,0.00029828,120]
[389657073,1759769483058,-361212.80714954,0.00029828,60]
[389657074,1759769483070,-372.8,0.00029828,60]
[389657075,1759769483082,-6772.696552,0.00029828,60]
[389657076,1759769483095,-751736.69629846,0.00029828,60]
[389657077,1759769483104,-1426.70348069,0.00029828,120]
[389657078,1759769483113,-28755.07397388,0.00029828,120]
[389657079,1759769483123,-17229.53072058,0.00029828,20]
[389657080,1759769483133,-2892.32774495,0.00029828,34]
[389657081,1759769483145,-432.60481996,0.00029828,34]
[389657082,1759769483156,-1330.47236798,0.00029828,34]
[389657083,1759769483169,-344.59506711,0.00029828,34]
[389657084,1759769483179,-2001.3039329,0.00029828,30]
[389657085,1759769483191,-8987.989157,0.00029828,30]
[389657086,1759769483202,-15098.86182794,0.00029828,120]
[389657087,1759769483212,-441.15540182,0.00029828,120]
[389657088,1759769483222,-697.20390795,0.00029828,60]
[389657089,1759769483232,-289.57201378,0.00029828,120]
[389657090,1759769483243,-500.0,0.00029828,120]
[389657091,1759769483253,-302.73414845,0.00029828,120]
[389657092,1759769483263,-176.85359257,0.00029828,2]
[389657093,1759769483274,-296.99069677,0.00029828,2]
[389657094,1759769483284,-2104.37803819,0.00029828,2]
[389657095,1759769483295,-171.57711433,0.00029828,120]
[389657096,1759769483305,-53472.21503454,0.00029828,2]
[389657097,1759769483316,-1000.0,0.00029828,60]
[389657098,1759769483326,-1000.0,0.00029828,30]
[389657099,1759769483336,-5429.0,0.00029828,120]
[389657100,1759769483346,-40073.4643002,0.00029828,120]
[389657101,1759769483358,-36283.86106977,0.00029828,60]
[389657102,1759769483369,-6548.79119,0.00029828,60]
[389657103,1759769483381,-10000.0,0.00029828,30]
[389657104,1759769483391,-60000.0,0.00029828,120]
[389657105,1759769483401,-137865.9687913,0.00029828,30]
[389657112,1759769658306,395.61,8.921e-05,2]
[389657113,1759769658683,395.61,9.391e-05,2]
[389657114,1759769658959,395.61,9.86e-05,2]
[389657115,1759769659166,395.61,0.0001033,2]
[389657116,1759769659380,395.61,0.00010799,2]
[389657117,1759769659603,395.61,0.00011269,2]
[389657118,1759769660024,395.61,0.00011738,2]
[389657119,1759769674072,-153.986,0.00012208,2]
[389657120,1759769681289,-180.28007698,0.00012208,2]
[389657121,1759769696075,-61.34392302,0.00012208,2]
[389657122,1759769696113,-52.90718296,0.00012677,2]
[389657123,1759769703088,-152.921196,0.00012677,2]
[389657124,1759769725157,-63.86499496,0.00012677,2]
[389657125,1759769725187,-125.91662608,0.00012677,2]
[389657126,1759769732450,-208.45130786,0.00013147,2]
[389657127,1759769739691,-150.83224398,0.00013147,2]
[389657139,1759770566608,-165.66982386,0.00013047,2]
[389657140,1759770566628,-191.60496575,0.00013146,2]
[389657156,1759770632247,-1200.0,0.00013146,2]
[389657157,1759770632258,-300.0,0.00013146,2]
[389657158,1759770632267,-116.61913194,0.00013146,2]
[389657159,1759770632455,-169.97405826,0.00013146,2]
[389657160,1759770632465,-36.32644816,0.00013147,2]
[389657161,1759770632475,-500.0,0.00013147,2]
[389657162,1759770632484,-500.0,0.00013147,2]
[389657163,1759770632494,-500.0,0.00013147,2]
[389657164,1759770632504,-240.59839183,0.00013147,2]
[389657165,1759770632513,-224.75365481,0.00013147,2]
[389657166,1759770632523,-190.32,0.00013147,2]
[389657167,1759770632532,-190.32,0.00013421,2]
[389657168,1759770632541,-395.61,0.00013616,2]
[389657169,1759770632551,-190.32,0.00013695,2]
[389657170,1759770632560,-395.61,0.00014086,2]
[389657171,1759770632570,-153.986,0.00014104,2]
[389657172,1759770632579,-195.0,0.00014352,2]
[389657173,1759770632592,-195.0,0.00014352,2]
[389657174,1759770632602,-152.921196,0.00014352,2]
[389657175,1759770632611,-300.0,0.00014414,2]
[389657176,1759770632621,-150.0,0.0001446,2]
[389657177,1759770632630,-1009.0,0.0001446,2]
[389657178,1759770632639,-195.0,0.00014461,2]
[389657180,1759770632649,-300.0,0.00014461,2]
[389657182,1759770632659,-433.65009411,0.00014461,2]
[389657183,1759770632668,-300.0,0.00014461,2]
[389657185,1759770632679,-300.0,0.00014461,2]
[389657187,1759770632688,-300.0,0.00014461,2]
[389657189,1759770632697,-2500.0,0.00014461,2]
[389657190,1759770632707,-2500.0,0.00014461,2]
[389657191,1759770632717,-1479.17460258,0.00014461,2]
[389657192,1759770632726,-195.0,0.00014461,2]
[389657193,1759770632736,-250.0,0.00014461,2]
[389657194,1759770632745,-195.0,0.00014461,2]
[389657195,1759770632755,-447.078804,0.00014461,2]
[389657196,1759770632764,-208.45130786,0.00014461,2]
[389657197,1759770632774,-395.61,0.00014555,2]
[389657198,1759770632783,-395.61,0.00015025,2]
[389657199,1759770632792,-395.61,0.00015494,2]
[389657200,1759770632806,-500.0,0.000158,2]
[389657201,1759770632815,-500.0,0.000158,2]
[389657202,1759770632824,-500.0,0.000158,2]
[389657203,1759770632834,-500.0,0.000158,2]
[389657204,1759770632843,-500.0,0.000158,2]
[389657205,1759770632852,-500.0,0.0001587,2]
[389657206,1759770632862,-503.1997225,0.0001589,2]
[389657207,1759770632871,-1017.0,0.00015931,2]
[389657208,1759770632880,-395.61,0.00015964,2]
[389657209,1759770632890,-12431.98,0.00015999,2]
[389657210,1759770632899,-520.53253172,0.00016,2]
[389657211,1759770632908,-505.78396704,0.00016,2]
[389657212,1759770632918,-165.07679832,0.00016,2]
[389657213,1759770632928,-167.17982377,0.00016,2]
[389657214,1759770632937,-500.0,0.00016,2]
[389657215,1759770632946,-156.0841444,0.00016,2]
[389657216,1759770632955,-930.63,0.0001608,2]
[389657217,1759770632965,-666.0,0.00016186,3]
[389657218,1759770632974,-304.77,0.0001619,2]
[389657219,1759770632983,-302.35,0.0001619,2]
[389657220,1759770632993,-300.06,0.0001619,2]
[389657221,1759770633002,-301.55,0.0001619,2]
[389657222,1759770633012,-1295.69,0.0001619,2]
[389657223,1759770633022,-304.46,0.0001619,2]
[389657224,1759770633032,-303.12,0.0001619,2]
[389657225,1759770633043,-429.83,0.00016192,2]
[389657226,1759770633053,-442.63,0.00016194,2]
[389657227,1759770633063,-305.02,0.00016201,2]
[389657228,1759770633073,-180.28007698,0.00016211,2]
[389657229,1759770633082,-440.5,0.00016216,2]
[389657230,1759770633091,-441.35,0.00016219,2]
[389657231,1759770633100,-301.72,0.00016263,2]
[389657232,1759770633110,-1575.04731266,0.00016278,2]
[389657233,1759770633122,-2395.52721537,0.00016278,2]
[389657234,1759770633137,-1815.3895284,0.00016278,2]
[389657235,1759770633147,-5785.96405643,0.00016283,2]
[389657236,1759770633156,-5785.96405643,0.00016291,2]
[389657237,1759770633165,-468.06759327,0.00016308,2]
[389657238,1759770633178,-5785.96405643,0.00016309,2]
[389657239,1759770633188,-5785.96405643,0.00016312,2]
[389657240,1759770633197,-150.0,0.00016314,7]
[389657241,1759770633206,-1000.0,0.00016348,2]
[389657242,1759770633215,-468.06759327,0.00016361,2]
[389657243,1759770633224,-468.06759327,0.00016373,2]
[389657244,1759770633233,-468.06759327,0.0001638,2]
[389657245,1759770633242,-468.06759327,0.00016385,2]
[389657246,1759770633252,-160.0,0.00016408,2]
[389657247,1759770633261,-395.61,0.00016434,2]
[389657248,1759770633270,-1000.0,0.00016438,2]
[389657249,1759770633279,-1000.0,0.00016438,2]
[389657250,1759770633288,-1000.0,0.00016438,2]
[389657251,1759770633297,-1000.0,0.00016438,2]
[389657252,1759770633306,-1000.0,0.00016438,2]
[389657253,1759770633316,-1000.0,0.00016438,2]
[389657254,1759770633325,-1000.0,0.00016438,2]
[389657255,1759770633334,-1000.0,0.00016438,2]
[389657256,1759770633343,-1000.0,0.00016438,2]
[389657257,1759770633352,-370.68887098,0.00016457,2]
[389657258,1759770633361,-157.03702773,0.00016466,2]
[389657259,1759770633370,-157.03702773,0.00016603,2]
[389657260,1759770633380,-500.0,0.0001674,2]
[389657261,1759770633390,-157.03702773,0.00016767,2]
[389657262,1759770633399,-165.66982386,0.00016793,2]
[389657263,1759770633408,-501.3878239,0.0001686,2]
[389657264,1759770633417,-33330.1916,0.00016893,2]
[389657265,1759770633426,-1000.0,0.00016893,2]
[389657266,1759770633435,-1006.22946674,0.00016896,2]
[389657267,1759770633444,-395.61,0.00016903,2]
[389657268,1759770633453,-157.03702773,0.00016904,2]
[389657269,1759770633462,-858.53,0.00016922,2]
[389657270,1759770633471,-250.0,0.00017,2]
[389657271,1759770633480,-500.0,0.0001704,2]
[389657272,1759770633490,-157.03702773,0.00017041,2]
[389657273,1759770633508,-157.03702773,0.00017178,2]
[389657274,1759770633518,-618.89910714,0.00017288,2]
[389657275,1759770633527,-395.61,0.00017373,2]
[389657276,1759770633536,-621.0,0.00017429,2]
[389657277,1759770633546,-189.5657,0.000177,2]
[389657278,1759770633556,-555.234,0.00017758,2]
[389657279,1759770633566,-5659.77,0.000178,2]
[389657280,1759770633575,-463.54,0.00017842,2]
[389657281,1759770633585,-200.0,0.00017842,2]
[389657282,1759770633594,-282.09,0.00017842,2]
[389657283,1759770633604,-1000.0,0.00017842,2]
[389657284,1759770633613,-395.61,0.00017842,2]
[389657285,1759770633622,-5659.77,0.000181,2]
[389657286,1759770633632,-1295.69,0.00018214,2]
[389657287,1759770633641,-558.0,0.00018267,2]
[389657288,1759770633652,-500.0,0.0001835,2]
[389657289,1759770633661,-500.0,0.0001835,2]
[389657290,1759770633670,-500.0,0.0001835,2]
[389657291,1759770633681,-322.6107,0.0001836,2]
[389657292,1759770633690,-7965.41053268,0.0001836,2]
[389657293,1759770633699,-544.98088023,0.0001836,2]
[389657294,1759770633708,-607.05092936,0.0001836,2]
[389657295,1759770633718,-187.54633109,0.0001836,2]
[389657296,1759770633727,-8260.13072239,0.00018415,2]
[389657297,1759770633737,-8565.75555911,0.0001847,2]
[389657298,1759770633746,-158.5479524,0.000185,2]
[389657299,1759770633755,-8882.6885148,0.00018525,2]
[389657300,1759770633764,-3032.56772214,0.00018535,2]
[389657301,1759770633774,-548.68064684,0.00018536,2]
[389657302,1759770633784,-9211.34798985,0.0001858,2]
[389657303,1759770633793,-5659.77,0.000186,2]
[389657304,1759770633802,-9552.16786547,0.00018635,2]
[389657305,1759770633811,-9905.5980765,0.0001869,2]
[389657306,1759770633822,-463.54,0.00018734,2]
[389657307,1759770633833,-5953.13882735,0.00018745,2]
[389657310,1759770638219,-3059.05649987,0.000163,2]
[389657311,1759770638230,-3059.05649987,0.00016334,2]
[389657312,1759770638240,-3059.05649987,0.00016366,2]
[389657313,1759770638250,-4318.96637798,0.00018745,2]
[389657314,1759770638260,-1997.95464614,0.000188,2]
[389657315,1759770638269,-150.0,0.000188,2]
[389657316,1759770638279,-300.0,0.00019,2]
[389657317,1759770638288,-184.50942333,0.00019139,4]
[389657318,1759770638298,-151.0,0.00019178,2]
[389657319,1759770638307,-5000.0,0.00019178,2]
[389657320,1759770638316,-854.3025,0.000195,2]
[389657321,1759770638326,-2500.0,0.000195,2]
[389657322,1759770638335,-2068.0,0.00019534,2]
[389657323,1759770638345,-1051.9376096,0.00019583,2]
[389657324,1759770638354,-2500.0,0.00019599,3]
[389657325,1759770638363,-70918.7401,0.000196,2]
[389657326,1759770638373,-463.54,0.00019626,2]
[389657327,1759770638383,-168.0,0.00019635,2]
[389657328,1759770638392,-168.0,0.00019646,2]
[389657329,1759770638404,-168.0,0.0001966,2]
[389657330,1759770638414,-197.49085683,0.00019726,2]
[389657331,1759770638424,-2068.0,0.00019735,2]
[389657332,1759770638434,-3032.5677221,0.00019776,2]
[389657333,1759770638443,-168.0,0.00019879,2]
[389657334,1759770638453,-162.69324746,0.000199,2]
[389657335,1759770638463,-2068.0,0.00019937,2]
[389657336,1759770638473,-168.92778384,0.0002,2]
[389657337,1759770638483,-188.65090225,0.0002,2]
[389657338,1759770638493,-5659.77,0.0002,2]
[389657339,1759770638502,-2068.0,0.00020138,2]
[389657340,1759770638512,-767.2531288,0.00020138,2]
[389657341,1759770638521,-168.0,0.00020148,2]
[389657342,1759770638530,-168.92778384,0.000202,2]
[389657343,1759770638539,-1295.69,0.00020237,2]
[389657345,1759770638547,-168.0,0.00020239,2]
[389657347,1759770638556,-150.0,0.00020241,2]
[389657349,1759770638565,-168.0,0.00020337,2]
[389657351,1759770638574,-2068.0,0.00020339,2]
[389657353,1759770638582,-168.0,0.00020373,2]
[389657355,1759770638591,-168.92778384,0.000204,2]
[389657357,1759770638600,-150.0,0.0002041,2]
[389657359,1759770638609,-168.0,0.0002047,2]
[389657360,1759770638617,-168.0,0.00020516,2]
[389657362,1759770638627,-463.54,0.00020518,2]
[389657364,1759770638637,-168.0,0.0002052,2]
[389657366,1759770638646,-2068.0,0.00020541,2]
[389657368,1759770638656,-189.9,0.00020548,2]
[389657370,1759770638665,-168.92778384,0.000206,2]
[389657372,1759770638675,-1090.0,0.00020614,2]
[389657375,1759770638685,-168.0,0.00020645,2]
[389657376,1759770638694,-2068.0,0.00020742,2]
[389657378,1759770638704,-168.92778384,0.000208,2]
[389657380,1759770638713,-168.0,0.00020888,2]
[389657382,1759770638723,-150.0,0.00020916,2]
[389657384,1759770638732,-168.0,0.00020918,2]
[389657386,1759770638742,-350.0,0.00021,2]
[389657388,1759770638751,-168.0,0.00021009,2]
[389657390,1759770638760,-3032.5677221,0.00021018,2]
[389657392,1759770638770,-500.0,0.00021063,7]
[389657394,1759770638779,-168.0,0.00021088,2]
[389657396,1759770638788,-5000.0,0.00021099,4]
[389657398,1759770638798,-168.0,0.00021177,2]
[389657400,1759770638807,-168.0,0.00021205,2]
[389657402,1759770638816,-2301.17,0.00021226,4]
[389657404,1759770638826,-168.0,0.00021245,2]
[389657406,1759770638835,-2370.1,0.00021276,4]
[389657407,1759770638844,-5000.0,0.00021278,4]
[389657409,1759770638853,-168.0,0.00021293,2]
[389657411,1759770638863,-24850.0,0.00021329,4]
[389657413,1759770638872,-500.0,0.00021337,7]
[389657415,1759770638881,-463.54,0.0002141,2]
[389657417,1759770638891,-1355.86869586,0.00021511,2]
[389657418,1759770638900,-4850.0,0.0002153,4]
[389657420,1759770638910,-162.69324746,0.00021543,2]
[389657422,1759770638919,-5659.77,0.000216,2]
[389657424,1759770638929,-500.0,0.00021611,7]
[389657426,1759770638939,-1090.0,0.00021645,2]
[389657428,1759770638948,-5000.0,0.00021859,4]
[389657430,1759770638958,-551.58,0.00021885,7]
[389657432,1759770638967,-2945.33,0.00021899,4]
[389657433,1759770638976,-1000.0,0.00021917,2]
[389657434,1759770638986,-300.0,0.00021917,2]
[389657435,1759770638996,-532.51,0.00021918,2]
[389657436,1759770639006,-5000.0,0.00021918,2]
[389657437,1759770639015,-1021.1,0.00021929,4]
[389657438,1759770639025,-370.68887098,0.00022,30]
[389657439,1759770639034,-370.68887098,0.00022,7]
[389657440,1759770639044,-154.44,0.00022,2]
[389657441,1759770639054,-600.0,0.0002211,2]
[389657442,1759770639064,-3032.5677221,0.00022259,2]
[389657443,1759770639074,-1295.69,0.00022261,2]
[389657444,1759770639083,-300.0,0.00022361,2]
[389657445,1759770639093,-1355.86869584,0.00022422,2]
[389657446,1759770639102,-600.0,0.00022658,2]
[389657447,1759770639111,-162.46,0.0002269,2]
[389657448,1759770639123,-370.68887098,0.000227,30]
[389657449,1759770639132,-2000.0,0.000227,2]
[389657450,1759770639141,-1090.0,0.00022727,2]
[389657451,1759770639151,-1000.0,0.00022783,2]
[389657452,1759770639160,-235.41,0.00022962,2]
[389657453,1759770639170,-154.44,0.00022976,2]
[389657454,1759770639183,-370.68887098,0.00023,3]
[389657455,1759770639193,-411.88703172,0.00023,2]
[389657456,1759770639203,-400.0,0.00023,2]
[389657457,1759770639212,-162.69324746,0.00023187,2]
[389657458,1759770639222,-411.88703172,0.000232,2]
[389657459,1759770639233,-500.0,0.000232,2]
[389657460,1759770639242,-600.0,0.00023206,2]
[389657461,1759770639252,-1355.86869584,0.00023332,2]
[389657462,1759770639265,-411.88703172,0.000235,2]
[389657463,1759770639274,-3032.5677221,0.000235,2]
[389657464,1759770639284,-411.88703172,0.000237,2]
[389657465,1759770639293,-300.0,0.00023731,2]
[389657466,1759770639302,-1000.0,0.00023748,2]
[389657467,1759770639312,-600.0,0.00023754,2]
[389657468,1759770639323,-500.0,0.00023833,2]
[389657469,1759770639331,-411.88703172,0.000239,2]
[389657470,1759770639341,-154.44,0.00023952,2]
[389657471,1759770639350,-1355.86869584,0.00024243,2]
[389657472,1759770639359,-1295.69,0.00024285,2]
[389657473,1759770639368,-600.0,0.00024302,2]
[389657474,1759770639378,-500.53228404,0.00024381,2]
[389657475,1759770639387,-1517.242,0.00024459,7]
[389657476,1759770639396,-161.00328079,0.00024557,2]
[389657477,1759770639405,-500.0,0.00024657,2]
[389657478,1759770639415,-500.0,0.00024657,2]
[389657479,1759770639424,-500.0,0.00024657,2]
[389657480,1759770639434,-500.0,0.00024657,2]
[389657481,1759770639443,-500.0,0.00024657,2]
[389657482,1759770639452,-500.0,0.00024657,2]
[389657483,1759770639461,-624.36673094,0.00024657,2]
[389657484,1759770639476,-1000.0,0.00024658,2]
[389657485,1759770639484,-1534.21,0.00024658,2]